[Event "*** Qualifier 3: Titled Tuesday 3|2 Blitz"]
[Site "Chess.com"]
[Date "2017.04.18"]
[Round "3"]
[White "Rodalquilar"]
[Black "Indianlad"]
[Result "1/2-1/2"]
[WhiteElo "2532"]
[BlackElo "2724"]
[TimeControl "180+2"]
[EndTime "13:43:23 PDT"]
[Termination "Game drawn by repetition"]

1. d4 {[%clk 0:03:02]} 1... Nf6 {[%clk 0:03:01.5]} 2. Bf4 {[%clk 0:03:02.7]}
2... g6 {[%clk 0:02:59.1]} 3. e3 {[%clk 0:03:03.5]} 3... Bg7 {[%clk 0:03:00.1]}
4. Nf3 {[%clk 0:03:04.9]} 4... O-O {[%clk 0:03:01.8]} 5. Be2 {[%clk 0:03:06.3]}
5... c5 {[%clk 0:02:59.7]} 6. O-O {[%clk 0:03:05.3]} 6... d6 {[%clk 0:02:55.7]}
7. c3 {[%clk 0:03:05.6]} 7... Qb6 {[%clk 0:02:56.3]} 8. Nbd2 {[%clk 0:03:06.4]}
8... Be6 {[%clk 0:02:56.8]} 9. e4 {[%clk 0:02:27.5]} 9... cxd4 {[%clk 0:02:53]}
10. cxd4 {[%clk 0:02:29.4]} 10... Bg4 {[%clk 0:02:36.7]} 11. Nc4 {[%clk
0:02:22.1]} 11... Qd8 {[%clk 0:02:34.2]} 12. h3 {[%clk 0:02:20.9]} 12... Bxf3
{[%clk 0:02:34.8]} 13. Bxf3 {[%clk 0:02:21.8]} 13... d5 {[%clk 0:02:30.4]} 14.
exd5 {[%clk 0:01:50.6]} 14... Nxd5 {[%clk 0:02:32.3]} 15. Be5 {[%clk 0:01:52]}
15... Nc6 {[%clk 0:02:31.7]} 16. Bxg7 {[%clk 0:01:53.1]} 16... Kxg7 {[%clk
0:02:33.5]} 17. Ne3 {[%clk 0:01:54.9]} 17... Nf6 {[%clk 0:02:23]} 18. d5 {[%clk
0:01:46]} 18... Ne5 {[%clk 0:02:23.9]} 19. Re1 {[%clk 0:01:47.3]} 19... Qb6
{[%clk 0:02:20.7]} 20. Nf5+ {[%clk 0:01:45.3]} 20... gxf5 {[%clk 0:02:21.7]} 21.
Rxe5 {[%clk 0:01:47.2]} 21... Qxb2 {[%clk 0:02:17.5]} 22. Rxe7 {[%clk
0:01:47.9]} 22... Rfe8 {[%clk 0:02:18.4]} 23. Rb1 {[%clk 0:01:30.8]} 23... Qxa2
{[%clk 0:02:09.9]} 24. Rbxb7 {[%clk 0:01:30.5]} 24... Rxe7 {[%clk 0:02:11.4]}
25. Rxe7 {[%clk 0:01:32.4]} 25... Rb8 {[%clk 0:01:17.8]} 26. Qd4 {[%clk
0:01:16]} 26... Rb1+ {[%clk 0:01:18.6]} 27. Kh2 {[%clk 0:01:17.2]} 27... Qb2
{[%clk 0:01:19.4]} 28. Qxa7 {[%clk 0:01:13.5]} 28... Qb8+ {[%clk 0:01:18.3]} 29.
Qxb8 {[%clk 0:00:38.3]} 29... Rxb8 {[%clk 0:01:20.2]} 30. Kg3 {[%clk 0:00:31.6]}
30... Rb4 {[%clk 0:01:18.2]} 31. Ra7 {[%clk 0:00:20.7]} 31... Rd4 {[%clk
0:01:19.1]} 32. Kh2 {[%clk 0:00:20.1]} 32... f4 {[%clk 0:01:17.8]} 33. h4 {[%clk
0:00:17.2]} 33... h5 {[%clk 0:01:17.4]} 34. Kh3 {[%clk 0:00:11.5]} 34... Rd2
{[%clk 0:01:18.5]} 35. Ra4 {[%clk 0:00:11]} 35... Rxf2 {[%clk 0:01:14.6]} 36.
Rxf4 {[%clk 0:00:11.7]} 36... Rd2 {[%clk 0:01:02.2]} 37. Rf5 {[%clk 0:00:12.2]}
37... Rd3 {[%clk 0:01:03.7]} 38. Kh2 {[%clk 0:00:08.8]} 38... Kg6 {[%clk
0:01:01.6]} 39. Rg5+ {[%clk 0:00:09.9]} 39... Kh6 {[%clk 0:01:02.2]} 40. Kg1
{[%clk 0:00:10.7]} 40... Rd4 {[%clk 0:01:02.5]} 41. g3 {[%clk 0:00:11.7]} 41...
Ng4 {[%clk 0:00:59.7]} 42. Bxg4 {[%clk 0:00:11.6]} 42... hxg4 {[%clk 0:00:59.9]}
43. Kf2 {[%clk 0:00:12.9]} 43... f6 {[%clk 0:01:01.2]} 44. Rg8 {[%clk 0:00:08]}
44... Rxd5 {[%clk 0:00:55.1]} 45. Rxg4 {[%clk 0:00:08.7]} 45... Ra5 {[%clk
0:00:51.9]} 46. Rf4 {[%clk 0:00:08.8]} 46... Kg6 {[%clk 0:00:53.2]} 47. Kg2
{[%clk 0:00:10.3]} 47... Re5 {[%clk 0:00:53.7]} 48. Kh3 {[%clk 0:00:11.6]} 48...
f5 {[%clk 0:00:54.9]} 49. Ra4 {[%clk 0:00:10.9]} 49... Kh5 {[%clk 0:00:53.7]}
50. Rf4 {[%clk 0:00:09.9]} 50... Ra5 {[%clk 0:00:54.6]} 51. Kg2 {[%clk
0:00:09.8]} 51... Re5 {[%clk 0:00:55.5]} 52. Ra4 {[%clk 0:00:06.9]} 52... Rb5
{[%clk 0:00:53.9]} 53. Kh3 {[%clk 0:00:08.2]} 53... Rb2 {[%clk 0:00:51.1]} 54.
Ra8 {[%clk 0:00:08.8]} 54... Rf2 {[%clk 0:00:38.7]} 55. Rg8 {[%clk 0:00:07]}
55... Kh6 {[%clk 0:00:39]} 56. Ra8 {[%clk 0:00:05.9]} 56... Kh5 {[%clk
0:00:39.6]} 57. Ra6 {[%clk 0:00:07]} 57... Rf3 {[%clk 0:00:36]} 58. Rf6 {[%clk
0:00:07]} 58... Rf2 {[%clk 0:00:34.2]} 59. Rf7 {[%clk 0:00:05]} 59... Kg6 {[%clk
0:00:34.8]} 60. Ra7 {[%clk 0:00:06.1]} 60... Rb2 {[%clk 0:00:36.1]} 61. Ra6+
{[%clk 0:00:07.3]} 61... Kg7 {[%clk 0:00:36.3]} 62. h5 {[%clk 0:00:07.5]} 62...
Rb4 {[%clk 0:00:37.7]} 63. Rc6 {[%clk 0:00:08.2]} 63... Rb3 {[%clk 0:00:35.5]}
64. Kh4 {[%clk 0:00:08.9]} 64... Rb4+ {[%clk 0:00:36.7]} 65. Kh3 {[%clk
0:00:08.2]} 65... Rb3 {[%clk 0:00:38.1]} 66. Rg6+ {[%clk 0:00:08]} 66... Kh7
{[%clk 0:00:39.1]} 67. Kh4 {[%clk 0:00:09.6]} 67... Rb5 {[%clk 0:00:35.3]} 68.
Rc6 {[%clk 0:00:07.8]} 68... Ra5 {[%clk 0:00:35.9]} 69. Kg5 {[%clk 0:00:08.5]}
69... f4+ {[%clk 0:00:36.7]} 70. Kxf4 {[%clk 0:00:09.3]} 70... Rxh5 {[%clk
0:00:37.3]} 71. g4 {[%clk 0:00:10.8]} 71... Ra5 {[%clk 0:00:38.1]} 72. Rb6
{[%clk 0:00:10.7]} 72... Kg7 {[%clk 0:00:39.1]} 73. Kg3 {[%clk 0:00:11.8]} 73...
Rc5 {[%clk 0:00:39.6]} 74. Kh4 {[%clk 0:00:13.2]} 74... Ra5 {[%clk 0:00:40.5]}
75. Rb7+ {[%clk 0:00:14.6]} 75... Kg6 {[%clk 0:00:41.1]} 76. Rb6+ {[%clk
0:00:16.5]} 76... Kg7 {[%clk 0:00:42.3]} 77. g5 {[%clk 0:00:18.1]} 77... Ra1
{[%clk 0:00:42.6]} 78. Rb7+ {[%clk 0:00:18.9]} 78... Kg6 {[%clk 0:00:43.8]} 79.
Rb6+ {[%clk 0:00:20.3]} 79... Kg7 {[%clk 0:00:45.1]} 80. Rb4 {[%clk 0:00:21.6]}
80... Kg6 {[%clk 0:00:44.4]} 81. Kg4 {[%clk 0:00:22.2]} 81... Rg1+ {[%clk
0:00:44.4]} 82. Kf4 {[%clk 0:00:23.6]} 82... Rxg5 {[%clk 0:00:41.9]} 83. Rb6+
{[%clk 0:00:24.2]} 83... Kh5 {[%clk 0:00:42.9]} 84. Rb8 {[%clk 0:00:25.2]} 84...
Rg4+ {[%clk 0:00:43.5]} 85. Kf5 {[%clk 0:00:25.8]} 85... Rg5+ {[%clk 0:00:44.6]}
86. Kf4 {[%clk 0:00:27]} 86... Rg4+ {[%clk 0:00:45.5]} 87. Kf5 {[%clk
0:00:28.3]} 87... Rg5+ {[%clk 0:00:46.8]} 88. Kf4 {[%clk 0:00:29.7]} 88... Rg4+
{[%clk 0:00:47.8]} 1/2-1/2

[Event "*** Qualifier 3: Titled Tuesday 3|2 Blitz"]
[Site "Chess.com"]
[Date "2017.04.18"]
[Round "4"]
[White "JoachimBN"]
[Black "kleinebeer98"]
[Result "1-0"]
[WhiteElo "2657"]
[BlackElo "2461"]
[TimeControl "180+2"]
[EndTime "13:47:21 PDT"]
[Termination "JoachimBN won by resignation"]

1. Nf3 {[%clk 0:03:02]} 1... Nf6 {[%clk 0:02:58.7]} 2. c4 {[%clk 0:03:02.7]}
2... e6 {[%clk 0:02:59.5]} 3. g3 {[%clk 0:03:01]} 3... d5 {[%clk 0:02:59.4]} 4.
d4 {[%clk 0:03:02.3]} 4... Be7 {[%clk 0:02:58.7]} 5. Bg2 {[%clk 0:03:02.6]} 5...
O-O {[%clk 0:03:00.2]} 6. O-O {[%clk 0:03:03.2]} 6... dxc4 {[%clk 0:03:01.4]} 7.
Ne5 {[%clk 0:03:03.2]} 7... Nc6 {[%clk 0:03:02.7]} 8. Bxc6 {[%clk 0:03:01.5]}
8... bxc6 {[%clk 0:03:04.6]} 9. Nxc6 {[%clk 0:03:02.8]} 9... Qe8 {[%clk
0:03:05.9]} 10. Nxe7+ {[%clk 0:03:04.3]} 10... Qxe7 {[%clk 0:03:07.8]} 11. Qa4
{[%clk 0:02:59.8]} 11... e5 {[%clk 0:03:05.1]} 12. dxe5 {[%clk 0:02:56.6]} 12...
Qxe5 {[%clk 0:03:07]} 13. Nc3 {[%clk 0:02:58.1]} 13... Bb7 {[%clk 0:03:05.8]}
14. Qb5 {[%clk 0:02:56]} 14... Qxb5 {[%clk 0:03:02.1]} 15. Nxb5 {[%clk
0:02:57.9]} 15... Nd5 {[%clk 0:03:04]} 16. Bd2 {[%clk 0:02:55.5]} 16... Rfe8
{[%clk 0:02:58.7]} 17. Rfe1 {[%clk 0:02:51.3]} 17... a6 {[%clk 0:02:58.6]} 18.
Nc3 {[%clk 0:02:50.3]} 18... Rad8 {[%clk 0:02:57]} 19. Nxd5 {[%clk 0:02:42.9]}
19... Rxd5 {[%clk 0:02:57.9]} 20. Bc3 {[%clk 0:02:44.8]} 20... h5 {[%clk
0:02:57.4]} 21. f3 {[%clk 0:02:43.6]} 21... h4 {[%clk 0:02:57.4]} 22. Kf2 {[%clk
0:02:40.8]} 22... hxg3+ {[%clk 0:02:42.7]} 23. hxg3 {[%clk 0:02:42.7]} 23...
Red8 {[%clk 0:02:42.9]} 24. Rh1 {[%clk 0:02:41.3]} 24... f6 {[%clk 0:02:41.2]}
25. Rh4 {[%clk 0:02:41.2]} 25... Rc5 {[%clk 0:02:39.1]} 26. Rc1 {[%clk
0:02:36.9]} 26... Bd5 {[%clk 0:02:37.6]} 27. Rd1 {[%clk 0:02:33.8]} 27... Rd7
{[%clk 0:02:37.7]} 28. Rhd4 {[%clk 0:02:34.5]} 1-0

[Event "*** Qualifier 3: Titled Tuesday 3|2 Blitz"]
[Site "Chess.com"]
[Date "2017.04.18"]
[Round "4"]
[White "Kacparov"]
[Black "Bugcrusher"]
[Result "1-0"]
[WhiteElo "2611"]
[BlackElo "2503"]
[TimeControl "180+2"]
[EndTime "13:47:31 PDT"]
[Termination "Kacparov won by resignation"]

1. e4 {[%clk 0:02:38.5]} 1... e6 {[%clk 0:02:59.8]} 2. d4 {[%clk 0:02:38.4]}
2... d5 {[%clk 0:03:01]} 3. Nd2 {[%clk 0:02:39.8]} 3... Be7 {[%clk 0:03:00.6]}
4. Ngf3 {[%clk 0:02:40.6]} 4... Nf6 {[%clk 0:03:00]} 5. e5 {[%clk 0:02:42.1]}
5... Nfd7 {[%clk 0:03:01]} 6. Bd3 {[%clk 0:02:43.8]} 6... c5 {[%clk 0:03:02.3]}
7. c3 {[%clk 0:02:45.4]} 7... Nc6 {[%clk 0:03:03.8]} 8. O-O {[%clk 0:02:47]}
8... a5 {[%clk 0:03:05.4]} 9. Re1 {[%clk 0:02:46.6]} 9... cxd4 {[%clk
0:03:05.1]} 10. cxd4 {[%clk 0:02:47.6]} 10... Qb6 {[%clk 0:03:06.7]} 11. Qa4
{[%clk 0:02:47.7]} 11... Qb4 {[%clk 0:03:05]} 12. Qxb4 {[%clk 0:02:48.7]} 12...
Nxb4 {[%clk 0:03:04.2]} 13. Bb1 {[%clk 0:02:49.5]} 13... b6 {[%clk 0:02:56.1]}
14. a3 {[%clk 0:02:50.3]} 14... Nc6 {[%clk 0:02:56.3]} 15. b3 {[%clk 0:02:49.7]}
15... Ba6 {[%clk 0:02:56.9]} 16. Bb2 {[%clk 0:02:50.9]} 16... O-O {[%clk
0:02:52.5]} 17. Bc2 {[%clk 0:02:50.4]} 17... Rfc8 {[%clk 0:02:53]} 18. Rac1
{[%clk 0:02:51.2]} 18... Na7 {[%clk 0:02:52]} 19. Bb1 {[%clk 0:02:51.7]} 19...
Nb5 {[%clk 0:02:46.4]} 20. Bd3 {[%clk 0:02:36.8]} 20... Nxa3 {[%clk 0:02:11.1]}
21. Rxc8+ {[%clk 0:02:21]} 21... Bxc8 {[%clk 0:02:06.9]} 22. Ra1 {[%clk
0:02:22.1]} 22... a4 {[%clk 0:01:56.4]} 23. Bxa3 {[%clk 0:02:21.9]} 23... axb3
{[%clk 0:01:57.7]} 24. Bb2 {[%clk 0:02:22.3]} 24... Ra2 {[%clk 0:01:54.3]} 25.
Rb1 {[%clk 0:02:20.1]} 25... Bb4 {[%clk 0:01:52.8]} 26. Nxb3 {[%clk 0:02:19.8]}
1-0

[Event "*** Qualifier 3: Titled Tuesday 3|2 Blitz"]
[Site "Chess.com"]
[Date "2017.04.18"]
[Round "4"]
[White "cheese111"]
[Black "PelinGorki"]
[Result "0-1"]
[WhiteElo "2254"]
[BlackElo "2375"]
[TimeControl "180+2"]
[EndTime "13:48:08 PDT"]
[Termination "PelinGorki won on time"]

1. e4 {[%clk 0:03:02]} 1... d6 {[%clk 0:03:00.8]} 2. d4 {[%clk 0:03:01.3]} 2...
Nf6 {[%clk 0:03:01.5]} 3. Nc3 {[%clk 0:03:01]} 3... c6 {[%clk 0:03:02.3]} 4. g3
{[%clk 0:02:55.5]} 4... Nbd7 {[%clk 0:03:02.3]} 5. Bg2 {[%clk 0:02:56.4]} 5...
e5 {[%clk 0:03:03.4]} 6. Nge2 {[%clk 0:02:57.7]} 6... Be7 {[%clk 0:03:03.4]} 7.
O-O {[%clk 0:02:58.3]} 7... b5 {[%clk 0:03:04]} 8. a3 {[%clk 0:02:55.8]} 8...
Bb7 {[%clk 0:03:04.2]} 9. h3 {[%clk 0:02:56.5]} 9... O-O {[%clk 0:03:04.5]} 10.
f4 {[%clk 0:02:43.4]} 10... a5 {[%clk 0:03:02.5]} 11. Be3 {[%clk 0:02:15.7]}
11... b4 {[%clk 0:03:02.8]} 12. axb4 {[%clk 0:02:16.3]} 12... axb4 {[%clk
0:03:03.8]} 13. Rxa8 {[%clk 0:01:47.9]} 13... Qxa8 {[%clk 0:03:05.7]} 14. Nb1
{[%clk 0:01:48]} 14... exd4 {[%clk 0:02:59.4]} 15. Nxd4 {[%clk 0:01:49.9]} 15...
c5 {[%clk 0:03:00.2]} 16. Nf5 {[%clk 0:01:50.6]} 16... Re8 {[%clk 0:03:00.6]}
0-1

[Event "*** Qualifier 3: Titled Tuesday 3|2 Blitz"]
[Site "Chess.com"]
[Date "2017.04.18"]
[Round "4"]
[White "Cayse"]
[Black "Elshan1985"]
[Result "1-0"]
[WhiteElo "2629"]
[BlackElo "2503"]
[TimeControl "180+2"]
[EndTime "13:48:36 PDT"]
[Termination "Cayse won by resignation"]

1. e4 {[%clk 0:03:02]} 1... e5 {[%clk 0:03:00.2]} 2. Nf3 {[%clk 0:03:02.6]} 2...
Nc6 {[%clk 0:03:02.1]} 3. Bc4 {[%clk 0:03:03.5]} 3... Nf6 {[%clk 0:03:01.8]} 4.
Ng5 {[%clk 0:03:03.7]} 4... d5 {[%clk 0:03:02.7]} 5. exd5 {[%clk 0:03:04.6]}
5... Nd4 {[%clk 0:03:04.3]} 6. c3 {[%clk 0:03:02.9]} 6... b5 {[%clk 0:03:01.9]}
7. Bf1 {[%clk 0:03:03.1]} 7... Nxd5 {[%clk 0:03:03.2]} 8. cxd4 {[%clk
0:02:56.4]} 8... Qxg5 {[%clk 0:03:02.4]} 9. Qf3 {[%clk 0:02:51.1]} 9... c6
{[%clk 0:02:58.4]} 10. Nc3 {[%clk 0:02:41.8]} 10... exd4 {[%clk 0:02:58.8]} 11.
Nxd5 {[%clk 0:02:41.4]} 11... Qxd5 {[%clk 0:03:00.5]} 12. Qxd5 {[%clk
0:02:42.2]} 12... cxd5 {[%clk 0:03:02.4]} 13. Bxb5+ {[%clk 0:02:43.1]} 13... Bd7
{[%clk 0:03:02.7]} 14. Bxd7+ {[%clk 0:02:42.9]} 14... Kxd7 {[%clk 0:03:04.6]}
15. Ke2 {[%clk 0:02:43.9]} 15... Bc5 {[%clk 0:02:57.1]} 16. b3 {[%clk
0:02:40.9]} 16... a5 {[%clk 0:02:36]} 17. Bb2 {[%clk 0:02:40.8]} 17... a4 {[%clk
0:02:37.1]} 18. Rac1 {[%clk 0:02:31]} 18... Rhc8 {[%clk 0:02:27.6]} 19. Rc2
{[%clk 0:02:12.6]} 19... axb3 {[%clk 0:02:23.8]} 20. axb3 {[%clk 0:02:13.2]}
20... f6 {[%clk 0:02:11.9]} 21. Rhc1 {[%clk 0:02:04.3]} 21... d3+ {[%clk
0:02:11.3]} 22. Kxd3 {[%clk 0:02:05.1]} 22... Bxf2 {[%clk 0:02:13]} 23. Rxc8
{[%clk 0:02:06.1]} 23... Rxc8 {[%clk 0:02:14.9]} 24. Rxc8 {[%clk 0:02:04.2]}
24... Kxc8 {[%clk 0:02:16.8]} 25. Bd4 {[%clk 0:02:05.4]} 25... Bh4 {[%clk
0:02:06.9]} 26. g3 {[%clk 0:02:05.5]} 26... Bg5 {[%clk 0:02:08]} 27. Be3 {[%clk
0:02:06.7]} 27... Bxe3 {[%clk 0:02:08.6]} 28. dxe3 {[%clk 0:01:55.5]} 28... Kc7
{[%clk 0:02:08.9]} 29. Kd4 {[%clk 0:01:56.6]} 29... Kd6 {[%clk 0:02:05.6]} 30.
b4 {[%clk 0:01:51.3]} 30... Kc6 {[%clk 0:02:06.6]} 31. g4 {[%clk 0:01:43.5]}
31... Kd6 {[%clk 0:01:59.6]} 32. b5 {[%clk 0:01:43.9]} 32... g6 {[%clk
0:02:00.5]} 33. b6 {[%clk 0:01:43.1]} 33... Kc6 {[%clk 0:02:00.5]} 34. b7 {[%clk
0:01:44.1]} 34... Kxb7 {[%clk 0:02:01.9]} 35. Kxd5 {[%clk 0:01:45.5]} 1-0

[Event "*** Qualifier 3: Titled Tuesday 3|2 Blitz"]
[Site "Chess.com"]
[Date "2017.04.18"]
[Round "4"]
[White "Lupul_Cenusiu"]
[Black "jcibarra"]
[Result "0-1"]
[WhiteElo "2455"]
[BlackElo "2654"]
[TimeControl "180+2"]
[EndTime "13:49:11 PDT"]
[Termination "jcibarra won by resignation"]

1. d4 {[%clk 0:03:02]} 1... Nf6 {[%clk 0:03:00.1]} 2. Bg5 {[%clk 0:03:02.3]}
2... c5 {[%clk 0:03:00.7]} 3. d5 {[%clk 0:03:03.1]} 3... Ne4 {[%clk 0:03:01.2]}
4. Bf4 {[%clk 0:03:02.4]} 4... Qb6 {[%clk 0:03:02.1]} 5. Bc1 {[%clk 0:03:02.4]}
5... e6 {[%clk 0:03:03.2]} 6. f3 {[%clk 0:03:03.1]} 6... Qa5+ {[%clk 0:03:04.5]}
7. c3 {[%clk 0:03:02.3]} 7... Nf6 {[%clk 0:03:05.6]} 8. e4 {[%clk 0:03:03.1]}
8... d6 {[%clk 0:03:07]} 9. Na3 {[%clk 0:03:02.2]} 9... exd5 {[%clk 0:03:08.2]}
10. exd5 {[%clk 0:03:03.1]} 10... Be7 {[%clk 0:03:09.6]} 11. Nc4 {[%clk
0:03:01.7]} 11... Qd8 {[%clk 0:03:10.6]} 12. a4 {[%clk 0:03:00]} 12... O-O
{[%clk 0:03:11.6]} 13. Kf2 {[%clk 0:03:01.4]} 13... Na6 {[%clk 0:03:10.1]} 14.
g4 {[%clk 0:02:55.9]} 14... Nc7 {[%clk 0:03:08.8]} 15. Ne3 {[%clk 0:02:57]}
15... Re8 {[%clk 0:03:06.7]} 16. Bc4 {[%clk 0:02:48.7]} 16... b6 {[%clk
0:03:07.3]} 17. Nh3 {[%clk 0:02:46.8]} 17... a6 {[%clk 0:03:04.5]} 18. Nf4
{[%clk 0:02:45.1]} 18... Bb7 {[%clk 0:03:04.6]} 19. Be2 {[%clk 0:02:43.3]} 19...
b5 {[%clk 0:03:00.2]} 20. g5 {[%clk 0:02:40.1]} 20... Nd7 {[%clk 0:03:00.7]} 21.
h4 {[%clk 0:02:40.6]} 21... Bf8 {[%clk 0:02:49.6]} 22. Rg1 {[%clk 0:02:26.3]}
22... g6 {[%clk 0:02:47.5]} 23. Ng4 {[%clk 0:02:23.6]} 23... Bg7 {[%clk
0:02:42.7]} 24. Be3 {[%clk 0:02:22.1]} 24... Ne5 {[%clk 0:02:37.3]} 25. Qd2
{[%clk 0:02:19.8]} 25... Nxg4+ {[%clk 0:02:35.5]} 26. Rxg4 {[%clk 0:02:20.3]}
26... Re5 {[%clk 0:02:33]} 27. c4 {[%clk 0:02:19.5]} 27... Qe7 {[%clk
0:02:07.8]} 28. axb5 {[%clk 0:02:19.1]} 28... Rxe3 {[%clk 0:02:06.4]} 29. b6
{[%clk 0:02:08.5]} 29... Bd4 {[%clk 0:02:04.9]} 30. Kf1 {[%clk 0:02:09.2]} 30...
Ne8 {[%clk 0:01:57.7]} 31. Ng2 {[%clk 0:02:10]} 31... Rb3 {[%clk 0:01:51.2]} 32.
Ra2 {[%clk 0:02:08]} 32... Rxb6 {[%clk 0:01:50.4]} 33. Rxd4 {[%clk 0:02:01.1]}
33... cxd4 {[%clk 0:01:50.1]} 34. Qxd4 {[%clk 0:02:02.1]} 34... Rb3 {[%clk
0:01:45.7]} 35. Bd1 {[%clk 0:01:56.8]} 35... Rb4 {[%clk 0:01:42.8]} 36. Qc3
{[%clk 0:01:50.8]} 36... a5 {[%clk 0:01:43.1]} 37. f4 {[%clk 0:01:46.1]} 37...
Rxc4 {[%clk 0:01:44.3]} 0-1

[Event "*** Qualifier 3: Titled Tuesday 3|2 Blitz"]
[Site "Chess.com"]
[Date "2017.04.18"]
[Round "4"]
[White "proxy6"]
[Black "grzechu96"]
[Result "0-1"]
[WhiteElo "2181"]
[BlackElo "2379"]
[TimeControl "180+2"]
[EndTime "13:49:34 PDT"]
[Termination "grzechu96 won by resignation"]

1. e4 {[%clk 0:03:02]} 1... c5 {[%clk 0:03:01]} 2. Nf3 {[%clk 0:03:01.9]} 2...
d6 {[%clk 0:03:02.1]} 3. d4 {[%clk 0:03:03.2]} 3... cxd4 {[%clk 0:03:04]} 4.
Nxd4 {[%clk 0:03:04.6]} 4... Nf6 {[%clk 0:03:05.7]} 5. Nc3 {[%clk 0:03:05.7]}
5... a6 {[%clk 0:03:07.3]} 6. Be3 {[%clk 0:03:06]} 6... e6 {[%clk 0:03:08.1]} 7.
g4 {[%clk 0:02:58.2]} 7... b5 {[%clk 0:02:59.9]} 8. g5 {[%clk 0:02:52.9]} 8...
Nfd7 {[%clk 0:03:01.2]} 9. f4 {[%clk 0:02:47.8]} 9... Bb7 {[%clk 0:03:02]} 10.
a3 {[%clk 0:02:44.9]} 10... Nc6 {[%clk 0:02:58.2]} 11. Qd2 {[%clk 0:02:39.2]}
11... Rc8 {[%clk 0:02:55]} 12. O-O-O {[%clk 0:02:36.8]} 12... Na5 {[%clk
0:02:56.4]} 13. h4 {[%clk 0:02:08]} 13... Nc4 {[%clk 0:02:47.1]} 14. Bxc4 {[%clk
0:02:08.3]} 14... Rxc4 {[%clk 0:02:49]} 15. h5 {[%clk 0:02:03.9]} 15... Qc7
{[%clk 0:02:34.8]} 16. g6 {[%clk 0:01:55.6]} 16... Rxc3 {[%clk 0:02:35.6]} 17.
gxf7+ {[%clk 0:01:40.7]} 17... Kxf7 {[%clk 0:02:37.5]} 18. bxc3 {[%clk
0:01:27.7]} 18... Bxe4 {[%clk 0:02:38]} 19. Rhf1 {[%clk 0:01:27.8]} 19... d5
{[%clk 0:02:30.9]} 20. f5 {[%clk 0:01:19.9]} 20... e5 {[%clk 0:02:31.9]} 21. Nb3
{[%clk 0:00:57.7]} 21... Bxa3+ {[%clk 0:02:15.4]} 22. Kb1 {[%clk 0:00:58.3]}
22... Qc4 {[%clk 0:02:01.6]} 23. Na1 {[%clk 0:00:39.6]} 23... b4 {[%clk
0:01:59.8]} 24. cxb4 {[%clk 0:00:18.5]} 24... Rb8 {[%clk 0:01:56.2]} 0-1

[Event "*** Qualifier 3: Titled Tuesday 3|2 Blitz"]
[Site "Chess.com"]
[Date "2017.04.18"]
[Round "4"]
[White "brauliocuarta"]
[Black "DavidMarkosyan"]
[Result "0-1"]
[WhiteElo "2139"]
[BlackElo "2345"]
[TimeControl "180+2"]
[EndTime "13:49:40 PDT"]
[Termination "DavidMarkosyan won by resignation"]

1. d4 {[%clk 0:03:01.9]} 1... Nf6 {[%clk 0:03:00.2]} 2. c4 {[%clk 0:03:02.1]}
2... g6 {[%clk 0:03:01.8]} 3. Nc3 {[%clk 0:03:02.8]} 3... Bg7 {[%clk 0:03:03.3]}
4. e4 {[%clk 0:03:03.7]} 4... O-O {[%clk 0:03:05]} 5. f4 {[%clk 0:03:04.7]} 5...
d6 {[%clk 0:03:06.3]} 6. Nf3 {[%clk 0:03:05.6]} 6... c5 {[%clk 0:03:07.9]} 7. d5
{[%clk 0:03:06.7]} 7... e6 {[%clk 0:03:08.5]} 8. Be2 {[%clk 0:03:07.8]} 8...
exd5 {[%clk 0:03:09.6]} 9. cxd5 {[%clk 0:03:09.7]} 9... Bg4 {[%clk 0:03:09.9]}
10. O-O {[%clk 0:03:09.5]} 10... Nbd7 {[%clk 0:03:10.3]} 11. h3 {[%clk
0:03:09.5]} 11... Bxf3 {[%clk 0:03:10.7]} 12. Bxf3 {[%clk 0:03:11.4]} 12... a6
{[%clk 0:03:12.3]} 13. a4 {[%clk 0:03:10.7]} 13... Re8 {[%clk 0:03:13.1]} 14. g4
{[%clk 0:03:10.6]} 14... h6 {[%clk 0:03:12.5]} 15. h4 {[%clk 0:03:07.1]} 15...
Qc7 {[%clk 0:03:10.4]} 16. g5 {[%clk 0:03:07.2]} 16... hxg5 {[%clk 0:03:10.4]}
17. hxg5 {[%clk 0:03:09.1]} 17... Nh7 {[%clk 0:03:09.5]} 18. Kg2 {[%clk
0:03:08.8]} 18... c4 {[%clk 0:03:09.1]} 19. e5 {[%clk 0:02:35.9]} 19... Nc5
{[%clk 0:03:05.6]} 20. Be3 {[%clk 0:02:08.8]} 20... Nd3 {[%clk 0:03:02.8]} 21.
Qc2 {[%clk 0:01:38.2]} 21... dxe5 {[%clk 0:03:02.1]} 22. f5 {[%clk 0:01:38.1]}
22... gxf5 {[%clk 0:02:56.9]} 23. d6 {[%clk 0:01:38.3]} 23... Qxd6 {[%clk
0:02:55]} 24. Bxb7 {[%clk 0:01:38.8]} 24... Rab8 {[%clk 0:02:45.9]} 25. Ne4
{[%clk 0:01:17.7]} 25... fxe4 {[%clk 0:02:42.8]} 26. Qxc4 {[%clk 0:01:18.1]}
26... Rxb7 {[%clk 0:02:41.8]} 27. Qxe4 {[%clk 0:01:18.7]} 27... Rxb2+ {[%clk
0:02:36.8]} 28. Kh1 {[%clk 0:01:19.4]} 28... Qd7 {[%clk 0:02:21.6]} 29. Rf3
{[%clk 0:01:12.3]} 29... Nf4 {[%clk 0:02:19.8]} 30. Bxf4 {[%clk 0:01:07.4]}
30... exf4 {[%clk 0:02:20.4]} 31. Qxf4 {[%clk 0:01:08.9]} 31... Rbe2 {[%clk
0:02:03.6]} 32. Raf1 {[%clk 0:01:07.4]} 32... Re1 {[%clk 0:01:54.5]} 33. Rxe1
{[%clk 0:00:47.4]} 33... Rxe1+ {[%clk 0:01:53.4]} 34. Kg2 {[%clk 0:00:49.3]}
34... Re2+ {[%clk 0:01:51.9]} 0-1